bitfinex/quotes_SOLUSD_20250604
["timestamp","ask_amount","ask_price","bid_price","bid_amount"]
[1749010731048,14.33629927,156.5,156.49,49.12]
[1749010740238,5.3468387,156.58,156.49,49.12]
[1749010740438,14.33629927,156.5,156.49,49.12]
[1749010741045,14.33629927,156.52,156.49,49.12]
[1749010742552,3.62804032,156.61,156.51,14.33629927]
[1749010742755,1.5782,156.62,156.5,19.07613357]
[1749010742756,14.33629927,156.59,156.55,0.14216157]
[1749010742941,14.33629927,156.59,156.56,49.12]
[1749010744460,14.33629927,156.57,156.56,49.12]
[1749010745763,14.33629927,156.57,156.56,10.1]
[1749010745953,14.33629927,156.57,156.56,49.12]
[1749010748045,14.33629927,156.57,156.56,10.1]
[1749010748248,14.33629927,156.57,156.56,49.12]
[1749010749774,14.33629927,156.57,156.56,10.1]
[1749010749943,14.33629927,156.57,156.56,49.12]
[1749010763165,3.64064274,156.62,156.56,49.12]
[1749010763378,6.16490343,156.64,156.56,49.12]
[1749010763379,1.6141,156.64,156.56,63.45629927]
[1749010763680,14.33629927,156.62,156.57,14.47846084]
[1749010763861,14.33629927,156.63,156.59,0.14216157]
[1749010764060,14.33629927,156.63,156.6,39.02]
[1749010764262,14.33629927,156.63,156.61,10.1]
[1749010764478,26.0,156.66,156.61,10.1]
[1749010764682,14.33629927,156.62,156.61,10.1]
[1749010766782,14.33629927,156.62,156.61,49.1]
[1749010770690,14.33629927,156.62,156.57,10.08]
[1749010770998,26.0,156.61,156.58,39.0]
[1749010771577,26.0,156.62,156.58,39.0]
[1749010772281,14.33629927,156.59,156.58,39.0]
[1749010773283,14.33629927,156.59,156.57,10.08]
[1749010773468,14.33629927,156.59,156.58,39.0]
[1749010785582,40.33629927,156.59,156.53,10.08]
[1749010785888,6.243,156.61,156.53,10.08]
[1749010785889,14.33629927,156.54,156.53,10.08]
[1749010786095,14.33629927,156.54,156.53,49.08]
[1749010786678,14.33629927,156.54,156.53,10.08]
[1749010786897,14.33629927,156.54,156.53,49.08]
[1749010787288,14.33629927,156.54,156.53,10.08]
[1749010787482,14.33629927,156.54,156.53,49.08]
[1749010789286,14.33629927,156.54,156.53,10.08]
[1749010789479,14.33629927,156.54,156.53,49.08]
[1749010793822,14.33629927,156.54,156.53,10.08]
[1749010794183,14.33629927,156.54,156.53,49.08]
[1749010794985,14.33629927,156.54,156.53,39.0]
[1749010795180,14.33629927,156.54,156.49,65.2]
[1749010795399,26.0,156.53,156.5,39.0]
[1749010795580,14.33629927,156.51,156.49,65.2]
[1749010795780,14.33629927,156.5,156.49,65.2]
[1749010795987,14.33629927,156.5,156.49,104.2]
[1749010796916,14.33629927,156.5,156.49,49.08]
[1749010798721,14.33629927,156.5,156.49,10.08]
[1749010799021,14.33629927,156.5,156.49,49.1]
[1749010799409,14.33629927,156.5,156.49,10.08]
[1749010799706,14.33629927,156.5,156.49,49.1]
[1749010800590,14.33629927,156.5,156.49,10.08]
[1749010800789,14.33629927,156.5,156.49,49.1]
[1749010810328,54.67259854,156.5,156.46,8.33333333]
[1749010810501,54.67259854,156.5,156.41,0.8177337]
[1749010810502,40.33629927,156.47,156.41,0.8177337]
[1749010810826,14.33629927,156.42,156.41,0.8177337]
[1749010811124,14.33629927,156.42,156.41,39.8377337]
[1749010813361,14.33629927,156.42,156.41,0.8177337]
[1749010813362,28.67259854,156.42,156.41,0.8177337]
[1749010813644,54.67259854,156.42,156.41,0.8177337]
[1749010814631,54.67259854,156.42,156.4,39.02]
[1749010814938,28.67259854,156.41,156.4,39.02]
[1749010817749,14.33629927,156.41,156.4,39.02]
[1749010818041,28.67259854,156.41,156.4,39.02]
[1749010820025,28.67259854,156.41,156.36,10.08]
[1749010820234,14.33629927,156.37,156.36,10.08]
[1749010820432,14.33629927,156.37,156.36,49.12]
[1749010822134,26.0,156.42,156.36,49.12]
[1749010822325,14.33629927,156.37,156.36,49.12]
[1749010823623,14.33629927,156.37,156.32,10.1]
[1749010823823,14.33629927,156.37,156.23,8.1444]
[1749010823824,28.67259854,156.33,156.23,8.1444]
[1749010824024,14.33629927,156.26,156.24,10.1]
[1749010824221,14.33629927,156.25,156.24,10.1]
[1749010824425,14.33629927,156.25,156.24,49.16]
[1749010825020,14.33629927,156.27,156.24,49.16]
[1749010825224,14.33629927,156.32,156.24,49.16]
[1749010825225,14.33629927,156.25,156.24,49.16]
[1749010825627,26.0,156.3,156.24,49.16]
[1749010825832,14.33629927,156.25,156.24,49.16]
[1749010826030,26.0,156.3,156.24,49.16]
[1749010826348,14.33629927,156.26,156.24,49.16]
[1749010826845,14.33629927,156.27,156.24,49.16]
[1749010827239,1.6275,156.36,156.25,19.07613357]
[1749010827445,14.33629927,156.3,156.25,33.41243284]
[1749010827746,14.33629927,156.29,156.25,33.41243284]
[1749010828239,14.33629927,156.28,156.25,0.14216157]
[1749010828446,14.33629927,156.28,156.26,39.08]
[1749010829846,14.33629927,156.28,156.24,10.1]
[1749010830143,14.33629927,156.28,156.27,39.08]
[1749010831933,27.6275,156.36,156.27,39.08]
[1749010832251,14.33629927,156.29,156.27,39.08]
[1749010833841,14.33629927,156.28,156.27,39.08]
[1749010834441,14.33629927,156.28,156.24,10.1]
[1749010834750,14.33629927,156.26,156.25,39.08]
[1749010836322,14.33629927,156.26,156.25,39.1]
[1749010837356,14.33629927,156.26,156.24,10.1]
[1749010837540,26.0,156.29,156.25,39.1]
[1749010837740,14.33629927,156.26,156.25,39.1]
[1749010838131,26.0,156.29,156.25,39.1]
[1749010838456,14.33629927,156.27,156.25,39.1]
[1749010839235,14.33629927,156.26,156.25,39.1]
[1749010840152,0.28432314,156.35,156.25,39.1]
[1749010840353,14.33629927,156.28,156.25,39.1]
[1749010841356,14.33629927,156.27,156.25,39.1]
[1749010842234,40.33629927,156.32,156.25,39.1]
[1749010842235,14.33629927,156.26,156.25,39.1]
[1749010842445,14.33629927,156.27,156.25,39.1]
[1749010843273,14.33629927,156.26,156.24,10.1]
[1749010843451,40.33629927,156.32,156.25,39.1]
[1749010843651,14.33629927,156.26,156.24,10.1]
[1749010843950,8.0054,156.4,156.28,26.0]
[1749010844156,14.33629927,156.33,156.29,49.24]
[1749010844363,26.0,156.37,156.29,49.24]
[1749010845164,26.0,156.37,156.3,10.12]
[1749010845481,14.33629927,156.32,156.3,10.12]
[1749010846378,14.33629927,156.32,156.31,39.12]
[1749010849577,14.33629927,156.32,156.3,10.12]
[1749010849876,14.33629927,156.31,156.3,10.12]
[1749010850063,14.33629927,156.31,156.3,49.24]
[1749010850250,1.5667,156.34,156.3,49.24]
[1749010850467,14.33629927,156.31,156.3,10.12]
[1749010850674,14.33629927,156.31,156.3,49.24]
[1749010850997,26.0,156.34,156.3,49.24]
[1749010851170,14.33629927,156.32,156.3,49.24]
[1749010851497,20.21274886,156.38,156.3,49.24]
[1749010851498,14.33629927,156.33,156.3,49.24]
[1749010851869,26.0,156.36,156.3,49.24]
[1749010852092,14.33629927,156.33,156.3,49.24]
[1749010854122,26.0,156.36,156.3,49.24]
[1749010854292,14.33629927,156.33,156.3,49.24]
[1749010855700,26.0,156.36,156.3,49.24]
[1749010855701,14.33629927,156.31,156.3,49.24]
[1749010855870,14.33629927,156.32,156.3,49.24]
[1749010856278,14.33629927,156.33,156.3,49.24]
[1749010856893,14.33629927,156.32,156.3,49.24]
[1749010857290,14.33629927,156.31,156.3,10.12]
[1749010857493,14.33629927,156.31,156.27,10.12]
[1749010857699,14.33629927,156.29,156.28,39.24]
[1749010858002,26.0,156.35,156.28,39.24]
[1749010858003,14.33629927,156.32,156.28,39.24]
[1749010858208,26.0,156.35,156.28,39.24]
[1749010858509,14.33629927,156.33,156.28,53.57629927]
[1749010858985,26.0,156.36,156.28,39.24]
[1749010858986,14.33629927,156.32,156.28,39.24]
[1749010859688,14.33629927,156.33,156.28,53.57629927]
[1749010859888,14.33629927,156.33,156.29,0.14216157]
[1749010860082,14.33629927,156.33,156.29,14.47846084]
[1749010861302,14.33629927,156.33,156.29,13.97846084]
[1749010862102,14.33629927,156.32,156.28,53.57629927]
[1749010862690,14.33629927,156.33,156.28,53.57629927]
[1749010862888,14.33629927,156.32,156.28,53.57629927]
[1749010863201,14.33629927,156.33,156.28,53.57629927]
[1749010863505,14.33629927,156.34,156.29,14.33629927]
[1749010864002,14.33629927,156.33,156.28,53.57629927]
[1749010864508,14.33629927,156.32,156.28,39.24]
[1749010865102,14.33629927,156.32,156.29,39.26]
[1749010865592,14.33629927,156.32,156.27,24.45629927]
[1749010865593,14.33629927,156.31,156.27,10.12]
[1749010865798,14.33629927,156.3,156.28,39.26]
[1749010866213,26.0,156.37,156.28,39.26]
[1749010866214,14.33629927,156.31,156.28,39.26]
[1749010867087,14.33629927,156.3,156.27,10.12]
[1749010867293,14.33629927,156.29,156.28,10.2]
[1749010867806,14.33629927,156.29,156.28,49.44]
[1749010868391,14.33629927,156.29,156.28,10.2]
[1749010868720,14.33629927,156.29,156.28,49.44]
[1749010869187,14.33629927,156.29,156.28,10.2]
[1749010869384,14.33629927,156.29,156.28,49.44]
[1749010872304,14.33629927,156.29,156.28,49.42]
[1749010873530,14.33629927,156.29,156.24,10.2]
[1749010873704,14.33629927,156.25,156.24,10.2]
[1749010873914,14.33629927,156.26,156.24,49.42]
[1749010875209,14.33629927,156.25,156.24,49.42]
[1749010875907,26.0,156.3,156.24,49.42]
[1749010876227,14.33629927,156.27,156.24,49.42]
[1749010876599,14.33629927,156.26,156.24,49.42]
[1749010877249,14.33629927,156.26,156.25,39.4]
[1749010879634,14.33629927,156.26,156.24,10.2]
[1749010879833,14.33629927,156.26,156.25,39.38]
[1749010880344,14.33629927,156.26,156.24,10.2]
[1749010880553,26.0,156.3,156.25,39.38]
[1749010880709,14.33629927,156.26,156.25,39.38]
[1749010881408,14.33629927,156.26,156.19,10.2]
[1749010881409,30.30219854,156.26,156.19,10.2]
[1749010881634,14.33629927,156.2,156.19,10.2]
[1749010882013,14.33629927,156.2,156.19,49.58]
[1749010882336,26.0,156.25,156.19,49.58]
[1749010882337,14.33629927,156.21,156.19,49.58]
[1749010882639,6.1243,156.28,156.2,33.1281097]
[1749010882929,14.33629927,156.27,156.22,14.33629927]
[1749010883132,14.33629927,156.27,156.23,39.42]
[1749010883317,14.33629927,156.27,156.24,10.2]
[1749010884723,14.33629927,156.26,156.24,10.2]
[1749010885424,14.33629927,156.25,156.24,10.2]
[1749010886433,14.33629927,156.26,156.24,49.6]
[1749010888428,14.33629927,156.25,156.24,10.2]
[1749010888629,1.5901,156.3,156.24,49.58]
[1749010889014,14.33629927,156.27,156.24,49.58]
[1749010891938,14.33629927,156.26,156.24,49.58]
[1749010892317,14.33629927,156.27,156.24,49.58]
[1749010892523,14.33629927,156.28,156.24,49.58]
[1749010892728,14.33629927,156.27,156.24,49.58]
[1749010896428,14.33629927,156.26,156.24,49.58]
[1749010896631,27.5901,156.3,156.24,49.58]
[1749010896829,14.33629927,156.28,156.24,63.91629927]
[1749010897721,14.33629927,156.3,156.25,14.33629927]
[1749010898052,1.5232,156.34,156.27,14.33629927]
[1749010898219,14.33629927,156.31,156.28,39.32]
[1749010898555,14.33629927,156.31,156.29,10.28]
[1749010898852,27.5232,156.34,156.29,10.28]
[1749010899051,14.33629927,156.31,156.29,10.28]
[1749010899917,6.3062,156.37,156.29,24.61629927]
[1749010900121,14.33629927,156.35,156.3,14.33629927]
[1749010900323,1.5154,156.38,156.3,14.33629927]
[1749010900324,14.33629927,156.34,156.3,14.33629927]
[1749010900625,14.33629927,156.34,156.29,24.61629927]
[1749010903242,14.33629927,156.33,156.29,24.61629927]
[1749010903448,14.33629927,156.32,156.29,10.28]
[1749010904019,14.33629927,156.33,156.29,24.61629927]
[1749010905332,14.33629927,156.33,156.29,10.28]
[1749010905655,14.33629927,156.33,156.3,39.28]
[1749010905837,14.33629927,156.34,156.3,53.61629927]
[1749010906028,14.33629927,156.34,156.3,39.28]
[1749010906424,14.33629927,156.35,156.3,53.61629927]
[1749010906844,14.33629927,156.36,156.31,14.33629927]
[1749010907025,1.5154,156.38,156.31,14.33629927]
[1749010907026,14.33629927,156.35,156.31,14.33629927]
[1749010907527,14.33629927,156.34,156.3,53.61629927]
[1749010907926,14.33629927,156.35,156.31,14.33629927]
[1749010908139,14.33629927,156.35,156.3,39.28]
[1749010908140,14.33629927,156.35,156.3,53.61629927]
[1749010908564,14.33629927,156.35,156.31,18.64964886]
[1749010909131,14.33629927,156.35,156.31,32.98594813]
[1749010910335,1.5154,156.38,156.32,14.33629927]
[1749010910554,14.33629927,156.37,156.32,14.33629927]
[1749010910738,1.5154,156.38,156.34,14.33629927]
[1749010910739,14.33629927,156.38,156.34,14.33629927]
[1749010910936,14.33629927,156.39,156.35,63.85629927]
[1749010911557,14.33629927,156.39,156.35,49.52]
[1749010912249,14.33629927,156.38,156.35,49.52]
[1749010912457,14.33629927,156.39,156.35,49.52]
[1749010913162,14.33629927,156.38,156.35,49.52]
[1749010915235,27.6469,156.42,156.35,49.52]
[1749010915572,14.33629927,156.4,156.35,63.85629927]
[1749010915733,14.33629927,156.41,156.36,33.41243284]
[1749010916352,14.33629927,156.4,156.35,63.85629927]
[1749010918240,14.33629927,156.4,156.35,49.52]
[1749010918441,14.33629927,156.39,156.35,49.52]
[1749010918656,14.33629927,156.4,156.35,63.85629927]
[1749010919031,14.33629927,156.41,156.36,32.98594813]
[1749010919361,14.33629927,156.42,156.37,14.33629927]
[1749010920654,14.33629927,156.42,156.36,19.07613357]
[1749010920837,14.33629927,156.42,156.37,14.33629927]
[1749010921234,1.5589,156.46,156.41,14.33629927]
[1749010921449,14.33629927,156.46,156.42,49.36]
[1749010921641,14.33629927,156.47,156.43,14.33629927]
[1749010921973,6.2996,156.49,156.45,14.33629927]
[1749010921974,14.33629927,156.49,156.45,14.33629927]
[1749010922463,14.33629927,156.46,156.42,68.00964886]
[1749010923033,14.33629927,156.45,156.42,10.18]
[1749010923237,1.6325,156.5,156.43,39.2]
[1749010923238,14.33629927,156.44,156.43,39.2]
[1749010923664,14.33629927,156.45,156.43,39.2]
[1749010924473,14.33629927,156.44,156.43,39.2]
[1749010925965,14.33629927,156.44,156.42,10.18]
[1749010926150,15.89809927,156.43,156.42,10.18]
[1749010926350,15.89809927,156.43,156.42,39.2]
[1749010928967,1.5618,156.43,156.42,39.2]
[1749010929137,15.89809927,156.43,156.42,39.2]
[1749010931850,15.89809927,156.43,156.38,10.18]
[1749010932050,1.5618,156.43,156.39,39.2]
[1749010932250,14.33629927,156.4,156.39,39.2]
[1749010933948,14.33629927,156.4,156.38,10.18]
[1749010934148,14.33629927,156.39,156.38,10.18]
[1749010934349,14.33629927,156.39,156.38,49.38]
[1749010934864,14.33629927,156.39,156.38,10.18]
[1749010935061,14.33629927,156.39,156.34,10.18]
[1749010935264,14.33629927,156.4,156.34,10.18]
[1749010935265,14.33629927,156.35,156.34,10.18]
[1749010935452,14.33629927,156.35,156.34,49.38]
[1749010938273,14.33629927,156.36,156.34,49.38]
[1749010939751,14.33629927,156.36,156.34,10.18]
[1749010940076,14.33629927,156.36,156.35,39.18]
[1749010940449,20.63793357,156.43,156.35,39.18]
[1749010940450,14.33629927,156.38,156.35,39.18]
[1749010940650,1.5618,156.43,156.35,39.18]
[1749010940651,14.33629927,156.37,156.35,39.18]
[1749010942760,14.33629927,156.38,156.35,39.18]
[1749010943273,14.33629927,156.37,156.35,39.18]
[1749010943494,14.33629927,156.4,156.35,39.18]
[1749010943668,14.33629927,156.36,156.35,39.18]
[1749010944390,26.0,156.42,156.35,39.18]
[1749010944557,14.33629927,156.37,156.35,39.18]
[1749010944779,14.33629927,156.36,156.35,39.18]
[1749010946082,14.33629927,156.37,156.35,39.18]
[1749010948274,14.33629927,156.37,156.34,10.18]
[1749010948275,14.33629927,156.36,156.34,10.18]
[1749010948479,26.0,156.39,156.35,39.3]
[1749010948680,14.33629927,156.36,156.35,39.3]
[1749010951375,14.33629927,156.36,156.34,10.18]
[1749010951571,14.33629927,156.38,156.35,39.34]
[1749010952954,26.0,156.41,156.35,39.34]
[1749010953151,14.33629927,156.38,156.35,39.34]
[1749010954362,14.33629927,156.37,156.35,39.34]
[1749010954770,14.33629927,156.36,156.35,39.34]
[1749010956870,14.33629927,156.36,156.34,10.18]
[1749010957076,14.33629927,156.36,156.35,39.36]
[1749010962591,14.33629927,156.36,156.35,39.32]
[1749010963371,14.33629927,156.36,156.35,39.3]
[1749010969493,14.33629927,156.4,156.35,39.3]
[1749010969691,14.33629927,156.37,156.35,39.3]
[1749010970491,1.5618,156.43,156.35,39.3]
[1749010970703,14.33629927,156.39,156.35,53.63629927]
[1749010971387,14.33629927,156.39,156.35,39.3]
[1749010971587,14.33629927,156.38,156.35,39.3]
[1749010973382,14.33629927,156.37,156.35,39.3]
[1749010974271,14.33629927,156.38,156.35,39.3]
[1749010974880,1.5618,156.43,156.35,39.3]
[1749010975074,14.33629927,156.38,156.35,39.3]
[1749010975274,14.33629927,156.37,156.35,39.3]
[1749010975474,26.0,156.41,156.35,39.3]
[1749010975475,14.33629927,156.36,156.35,39.3]
[1749010976198,14.33629927,156.36,156.35,39.22]
[1749010978305,14.33629927,156.36,156.34,10.18]
[1749010978516,14.33629927,156.36,156.3,40.33629927]
[1749010978517,14.33629927,156.35,156.3,26.0]
[1749010978695,14.33629927,156.33,156.31,49.46]
[1749010978891,14.33629927,156.33,156.32,39.2]
[1749010979095,14.33629927,156.34,156.32,39.2]
[1749010981103,14.33629927,156.35,156.32,39.2]
[1749010981817,14.33629927,156.38,156.33,14.33629927]
[1749010982211,14.33629927,156.38,156.34,10.18]
[1749010982802,14.33629927,156.37,156.34,10.18]
[1749010984787,14.33629927,156.36,156.34,10.18]
[1749010985718,14.33629927,156.35,156.34,10.18]
[1749010985890,14.33629927,156.35,156.34,49.34]
[1749010986093,14.33629927,156.35,156.34,10.18]
[1749010986304,14.33629927,156.35,156.34,49.34]
[1749010990238,12.41620934,156.44,156.34,63.67629927]
[1749010990520,14.33629927,156.41,156.36,14.33629927]
[1749010990700,7.8604,156.44,156.37,14.33629927]
[1749010990701,1.5123,156.44,156.37,14.33629927]
[1749010990897,20.81156084,156.48,156.34,75.34]
[1749010990898,14.33629927,156.43,156.39,14.33629927]
[1749010991098,14.33629927,156.44,156.4,49.36]
[1749010991417,14.33629927,156.43,156.4,49.36]
[1749010992094,14.33629927,156.44,156.4,49.36]
[1749010993029,48.18169927,156.48,156.4,63.69629927]
[1749010993030,7.8454,156.48,156.4,63.69629927]
[1749010993241,14.33629927,156.46,156.42,14.33629927]
[1749010993534,14.33629927,156.45,156.4,63.69629927]
[1749010995231,14.33629927,156.44,156.4,63.69629927]
[1749010995607,14.33629927,156.45,156.4,63.69629927]
[1749010996632,14.33629927,156.45,156.41,14.33629927]
[1749010996816,14.33629927,156.46,156.42,14.33629927]
[1749010997523,14.33629927,156.47,156.42,14.33629927]
[1749010997726,14.33629927,156.47,156.4,75.36]
[1749010997727,14.33629927,156.49,156.44,14.33629927]
[1749010997932,7.9388,156.52,156.45,49.32]
[1749010998132,14.33629927,156.49,156.45,49.32]
[1749010998518,14.33629927,156.48,156.45,49.32]
[1749010999507,14.33629927,156.49,156.45,63.65629927]
[1749010999711,14.33629927,156.48,156.45,49.32]
[1749011000126,14.33629927,156.48,156.45,10.18]
[1749011000324,33.9388,156.52,156.45,10.18]
[1749011000325,14.33629927,156.46,156.45,10.18]
[1749011001628,14.33629927,156.47,156.45,49.3]
[1749011002536,14.33629927,156.46,156.45,49.3]
[1749011002832,15.94179927,156.46,156.38,55.18]
[1749011003040,14.33629927,156.42,156.39,49.3]
[1749011003212,14.33629927,156.43,156.39,10.18]
[1749011003541,14.33629927,156.42,156.4,39.12]
[1749011005424,14.33629927,156.44,156.4,53.45629927]
[1749011005627,1.6055,156.46,156.42,14.33629927]
[1749011005824,40.33629927,156.48,156.43,14.33629927]
[1749011006027,14.33629927,156.47,156.44,10.18]
[1749011006231,1.6586,156.5,156.44,10.18]
[1749011006232,14.33629927,156.46,156.45,39.12]
[1749011006649,14.33629927,156.47,156.45,39.12]
[1749011007842,14.33629927,156.46,156.45,39.12]
[1749011012156,14.33629927,156.46,156.44,10.18]
[1749011012442,40.33629927,156.48,156.45,39.1]
[1749011012648,14.33629927,156.46,156.45,39.1]
[1749011013230,14.33629927,156.46,156.4,10.12]
[1749011013446,14.33629927,156.42,156.41,39.08]
[1749011016717,26.0,156.49,156.41,39.08]
[1749011017027,26.0,156.48,156.41,53.41629927]
[1749011017344,14.33629927,156.45,156.41,53.41629927]
[1749011018543,14.33629927,156.45,156.41,39.08]
[1749011019434,14.33629927,156.45,156.41,53.41629927]
[1749011021650,14.33629927,156.44,156.41,39.08]
[1749011023148,14.33629927,156.45,156.41,39.08]
[1749011023733,14.33629927,156.44,156.4,10.12]
[1749011023932,14.33629927,156.44,156.42,39.08]
[1749011026044,14.33629927,156.43,156.4,10.12]
[1749011026244,14.33629927,156.42,156.4,10.12]
[1749011026446,14.33629927,156.42,156.41,39.08]
[1749011026834,14.33629927,156.43,156.41,39.08]
[1749011027554,14.33629927,156.44,156.41,39.08]
[1749011028342,14.33629927,156.43,156.41,39.08]
[1749011032472,26.0,156.47,156.41,39.08]
[1749011032642,14.33629927,156.44,156.41,39.08]
[1749011033234,26.0,156.47,156.41,39.08]
[1749011033461,14.33629927,156.45,156.41,39.08]
[1749011033953,14.33629927,156.44,156.41,39.08]
[1749011034541,14.33629927,156.46,156.41,53.41629927]
[1749011034742,14.33629927,156.48,156.43,14.33629927]
[1749011035645,14.33629927,156.47,156.43,14.33629927]
[1749011039351,14.33629927,156.48,156.44,14.33629927]
[1749011039553,14.33629927,156.48,156.45,49.2]
[1749011039945,14.33629927,156.47,156.45,49.2]
[1749011040144,14.33629927,156.46,156.45,49.2]
[1749011041544,14.33629927,156.46,156.41,10.12]
[1749011041780,14.33629927,156.42,156.41,10.12]
[1749011041970,14.33629927,156.42,156.41,49.2]
[1749011042950,14.33629927,156.42,156.41,39.08]
[1749011044395,28.67259854,156.42,156.35,10.12]
[1749011044665,14.33629927,156.37,156.36,39.2]
[1749011045955,26.0,156.43,156.35,10.12]
[1749011046160,14.33629927,156.37,156.35,10.12]
[1749011046362,14.33629927,156.37,156.36,39.2]
[1749011047343,14.33629927,156.4,156.36,39.2]
[1749011047872,14.33629927,156.39,156.36,39.2]
[1749011048370,14.33629927,156.38,156.36,39.2]
[1749011049156,14.33629927,156.38,156.35,10.12]
[1749011049379,14.33629927,156.38,156.36,39.18]
[1749011049749,14.33629927,156.39,156.36,39.18]
[1749011050561,26.0,156.43,156.36,39.18]
[1749011050764,14.33629927,156.4,156.36,39.18]
[1749011052259,26.0,156.43,156.36,39.18]
[1749011052260,14.33629927,156.41,156.36,53.51629927]
[1749011053077,14.33629927,156.41,156.37,14.33629927]
[1749011054673,14.33629927,156.41,156.36,39.18]
[1749011054674,14.33629927,156.41,156.36,53.51629927]
[1749011056881,1.5414,156.48,156.39,14.33629927]
[1749011057179,14.33629927,156.45,156.41,14.33629927]
[1749011057988,14.33629927,156.45,156.4,63.61629927]
[1749011059268,27.5414,156.48,156.4,63.61629927]
[1749011059269,14.33629927,156.46,156.42,14.33629927]
[1749011059580,14.33629927,156.47,156.43,14.33629927]
[1749011059779,14.33629927,156.47,156.44,39.16]
[1749011059981,14.33629927,156.47,156.45,10.12]
[1749011061463,14.33629927,156.49,156.45,24.45629927]
[1749011061983,14.33629927,156.5,156.46,14.33629927]
[1749011063163,14.33629927,156.51,156.46,14.33629927]
[1749011064178,14.33629927,156.5,156.46,14.33629927]
[1749011064367,14.33629927,156.5,156.45,24.45629927]
[1749011064880,14.33629927,156.51,156.46,14.33629927]
[1749011065474,14.33629927,156.51,156.47,14.33629927]
[1749011066572,6.5352,156.55,156.48,14.33629927]
[1749011066786,14.33629927,156.53,156.49,39.1]
[1749011067086,14.33629927,156.53,156.5,10.12]
[1749011067788,14.33629927,156.54,156.5,24.45629927]
[1749011068500,27.5843,156.56,156.5,24.45629927]
[1749011068674,14.33629927,156.55,156.5,24.45629927]
[1749011068874,14.33629927,156.55,156.51,14.33629927]
[1749011069292,14.33629927,156.55,156.5,24.45629927]
[1749011070387,15.92059927,156.56,156.51,14.33629927]
[1749011071603,14.33629927,156.55,156.51,14.33629927]
[1749011071893,14.33629927,156.55,156.5,24.45629927]
[1749011072297,14.33629927,156.54,156.5,24.45629927]
[1749011072681,14.33629927,156.55,156.5,24.45629927]
[1749011074586,1.5843,156.56,156.5,24.45629927]
[1749011075004,14.33629927,156.56,156.51,14.33629927]
[1749011075481,14.33629927,156.55,156.5,24.45629927]
[1749011077707,14.33629927,156.54,156.5,24.45629927]
[1749011078602,14.33629927,156.55,156.5,24.45629927]
[1749011078979,14.33629927,156.55,156.51,14.33629927]
[1749011079405,14.33629927,156.55,156.5,24.45629927]
[1749011080199,26.0,156.58,156.5,24.45629927]
[1749011080506,14.33629927,156.55,156.5,24.45629927]
[1749011081611,6.6436,156.59,156.52,14.33629927]
[1749011081905,14.33629927,156.57,156.52,14.33629927]
[1749011082299,14.33629927,156.57,156.5,10.12]
[1749011082300,6.6436,156.59,156.53,14.33629927]
[1749011082504,14.33629927,156.57,156.54,39.06]
[1749011082893,14.33629927,156.57,156.54,49.18]
[1749011085906,14.33629927,156.58,156.54,49.18]
[1749011086105,6.6436,156.59,156.54,49.18]
[1749011086106,40.33629927,156.59,156.54,63.51629927]
[1749011089807,14.33629927,156.58,156.54,63.51629927]
[1749011090314,26.0,156.59,156.54,49.18]
[1749011090511,14.33629927,156.57,156.54,49.18]
[1749011091821,14.33629927,156.58,156.54,63.51629927]
[1749011092001,15.84699927,156.6,156.56,14.33629927]
[1749011092201,14.33629927,156.6,156.56,14.33629927]
[1749011092721,1.5665,156.64,156.57,14.33629927]
[1749011092905,14.33629927,156.62,156.58,39.04]
[1749011093214,14.33629927,156.62,156.59,10.12]
[1749011094537,14.33629927,156.63,156.59,24.45629927]
[1749011094891,15.90279927,156.64,156.59,24.45629927]
[1749011095096,6.4148,156.67,156.6,14.33629927]
[1749011095097,14.33629927,156.65,156.6,14.33629927]
[1749011097605,1.524,156.68,156.62,14.33629927]
[1749011097823,14.33629927,156.67,156.63,39.04]